[Event "Titled Tuesday Blitz April 18 Early 2023"]
[White "Namitbir Singh Walia"]
[Black "Prudnykova, Olga"]
[WhiteFideId "35071068"]
[BlackFideId "14121093"]
[WhiteElo "2239"]
[BlackElo "2113"]
[Result "0-1"]
[Round "02"]
[TimeControl "180+2"]
[Date "2023.04.18"]
[WhiteClock "0:00:02"]
[BlackClock "0:00:11"]

1. e4 {[%clk 0:03:00]}  c5 {[%clk 0:02:59]} 2. Nf3 {[%clk 0:03:00]}  Nf6 {[%clk 0:02:59]} 3. e5 {[%clk 0:02:49]}  Nd5 {[%clk 0:02:59]} 4. d4 {[%clk 0:02:48]}  cxd4 {[%clk 0:02:58]} 5. Qxd4 {[%clk 0:02:47]}  e6 {[%clk 0:02:57]} 6. Bg5 {[%clk 0:02:38]}  Qa5+ {[%clk 0:02:32]} 7. Bd2 {[%clk 0:02:36]}  Qc7 {[%clk 0:02:32]} 8. Nc3 {[%clk 0:02:31]}  Nxc3 {[%clk 0:02:29]} 9. Qxc3 {[%clk 0:02:26]}  Nc6 {[%clk 0:02:26]} 10. O-O-O {[%clk 0:02:26]}  Be7 {[%clk 0:02:04]} 11. h4 {[%clk 0:02:19]}  b6 {[%clk 0:01:47]} 12. Bg5 {[%clk 0:01:48]}  Bxg5+ {[%clk 0:01:33]} 13. hxg5 {[%clk 0:01:46]}  Bb7 {[%clk 0:01:33]} 14. Bd3 {[%clk 0:01:44]}  O-O-O {[%clk 0:01:33]} 15. Rh4 {[%clk 0:00:57]}  Kb8 {[%clk 0:01:31]} 16. Rc4 {[%clk 0:00:54]}  Rc8 {[%clk 0:01:22]} 17. Nd4 {[%clk 0:00:53]}  Qd8 {[%clk 0:01:17]} 18. Nb5 {[%clk 0:00:49]}  Qxg5+ {[%clk 0:01:07]} 19. f4 {[%clk 0:00:45]}  Qxg2 {[%clk 0:01:07]} 20. Be4 {[%clk 0:00:39]}  Qf2 {[%clk 0:01:00]} 21. Bd3 {[%clk 0:00:12]}  Na5 {[%clk 0:00:50]} 22. Rxc8+ {[%clk 0:00:10]}  Rxc8 {[%clk 0:00:51]} 23. Qb4 {[%clk 0:00:07]}  Nc4 {[%clk 0:00:25]} 24. b3 {[%clk 0:00:03]}  Qxf4+ {[%clk 0:00:24]} 25. Kb1 {[%clk 0:00:03]}  Qf3 {[%clk 0:00:19]} 26. Rf1 {[%clk 0:00:02]}  a5 {[%clk 0:00:17]} 27. Qe7 {[%clk 0:00:02]}  Nd2+ {[%clk 0:00:17]} 28. Kb2 {[%clk 0:00:02]}  Nxf1 {[%clk 0:00:17]} 29. Nd6 {[%clk 0:00:03]}  Rc7 {[%clk 0:00:16]} 30. Qd8+ {[%clk 0:00:03]}  Bc8 {[%clk 0:00:15]} 31. Ba6 {[%clk 0:00:04]}  Qc6 {[%clk 0:00:11]} 32. Nxc8 {[%clk 0:00:04]}  Qxc2+ {[%clk 0:00:11]} 33. Ka3 {[%clk 0:00:04]}  Qc5+ {[%clk 0:00:11]} 34. Kb2 {[%clk 0:00:02]}  Qc1# {[%clk 0:00:11]} 0-1


[Site "https://www.chess.com"]

[Event "Titled Tuesday Blitz April 18 Early 2023"]
[White "ilya2700"]
[Black "Berthier, Hugo"]
[BlackFideId "655864"]
[WhiteElo "2280"]
[BlackElo "2193"]
[Result "1-0"]
[Round "02"]
[TimeControl "180+2"]
[Date "2023.04.18"]
[WhiteClock "0:01:40"]
[BlackClock "0:00:37"]

1. d4 {[%clk 0:03:00]}  d5 {[%clk 0:02:59]} 2. c4 {[%clk 0:03:00]}  c6 {[%clk 0:02:58]} 3. Nf3 {[%clk 0:03:00]}  Nf6 {[%clk 0:02:58]} 4. Nc3 {[%clk 0:03:01]}  dxc4 {[%clk 0:02:58]} 5. a4 {[%clk 0:03:00]}  Bf5 {[%clk 0:02:59]} 6. e3 {[%clk 0:03:00]}  e6 {[%clk 0:02:59]} 7. Bxc4 {[%clk 0:03:00]}  Bb4 {[%clk 0:02:59]} 8. O-O {[%clk 0:03:01]}  O-O {[%clk 0:02:59]} 9. Qe2 {[%clk 0:03:01]}  Bg6 {[%clk 0:03:00]} 10. Bd3 {[%clk 0:02:55]}  Nbd7 {[%clk 0:02:54]} 11. e4 {[%clk 0:02:54]}  e5 {[%clk 0:02:53]} 12. Nxe5 {[%clk 0:02:43]}  Nxe5 {[%clk 0:02:50]} 13. dxe5 {[%clk 0:02:44]}  Nd7 {[%clk 0:02:44]} 14. f4 {[%clk 0:02:43]}  Nc5 {[%clk 0:02:39]} 15. Rd1 {[%clk 0:02:24]}  Qa5 {[%clk 0:01:47]} 16. f5 {[%clk 0:02:14]}  Bxc3 {[%clk 0:01:33]} 17. bxc3 {[%clk 0:02:14]}  Qxc3 {[%clk 0:01:16]} 18. Bb2 {[%clk 0:02:13]}  Bh5 {[%clk 0:01:13]} 19. Bxc3 {[%clk 0:02:13]}  Bxe2 {[%clk 0:01:12]} 20. Bxe2 {[%clk 0:02:14]}  Nxe4 {[%clk 0:01:12]} 21. Bb4 {[%clk 0:02:06]}  Rfe8 {[%clk 0:01:13]} 22. e6 {[%clk 0:01:51]}  fxe6 {[%clk 0:01:07]} 23. fxe6 {[%clk 0:01:52]}  c5 {[%clk 0:01:06]} 24. Be1 {[%clk 0:01:52]}  Kh8 {[%clk 0:00:51]} 25. Bc4 {[%clk 0:01:51]}  Ng5 {[%clk 0:00:44]} 26. Rd6 {[%clk 0:01:48]}  Ne4 {[%clk 0:00:39]} 27. Rd7 {[%clk 0:01:45]}  b6 {[%clk 0:00:39]} 28. Bd5 {[%clk 0:01:36]}  Nf6 {[%clk 0:00:39]} 29. Bxa8 {[%clk 0:01:36]}  Nxd7 {[%clk 0:00:39]} 30. exd7 {[%clk 0:01:37]}  Rxa8 {[%clk 0:00:37]} 31. Bh4 {[%clk 0:01:38]}  g5 {[%clk 0:00:36]} 32. Bxg5 {[%clk 0:01:38]}  Kg7 {[%clk 0:00:37]} 33. d8=Q {[%clk 0:01:39]}  Rxd8 {[%clk 0:00:37]} 34. Bxd8 {[%clk 0:01:40]} 1-0


[Site "https://www.chess.com"]

[Event "Titled Tuesday Blitz April 18 Early 2023"]
[White "babbilator"]
[Black "Chernomordik, Pavel"]
[BlackFideId "2804530"]
[WhiteElo "2256"]
[BlackElo "2193"]
[Result "0-1"]
[Round "02"]
[TimeControl "180+2"]
[Date "2023.04.18"]
[WhiteClock "0:00:18"]
[BlackClock "0:01:18"]

1. e4 {[%clk 0:02:57]}  g6 {[%clk 0:02:55]} 2. Nc3 {[%clk 0:02:57]}  Bg7 {[%clk 0:02:55]} 3. f4 {[%clk 0:02:56]}  e6 {[%clk 0:02:49]} 4. d4 {[%clk 0:02:50]}  d6 {[%clk 0:02:44]} 5. Nf3 {[%clk 0:02:50]}  b6 {[%clk 0:02:44]} 6. Be3 {[%clk 0:02:39]}  Bb7 {[%clk 0:02:43]} 7. Qd2 {[%clk 0:02:37]}  Ne7 {[%clk 0:02:42]} 8. Bd3 {[%clk 0:02:36]}  Nd7 {[%clk 0:02:42]} 9. O-O-O {[%clk 0:02:34]}  a6 {[%clk 0:02:41]} 10. g4 {[%clk 0:02:32]}  b5 {[%clk 0:02:40]} 11. Rhf1 {[%clk 0:02:23]}  b4 {[%clk 0:02:33]} 12. Ne2 {[%clk 0:02:22]}  Nf6 {[%clk 0:02:32]} 13. Ng3 {[%clk 0:02:11]}  Nxg4 {[%clk 0:02:32]} 14. Bg1 {[%clk 0:02:11]}  c5 {[%clk 0:02:29]} 15. dxc5 {[%clk 0:02:08]}  dxc5 {[%clk 0:02:27]} 16. Bxc5 {[%clk 0:02:05]}  Qc7 {[%clk 0:02:22]} 17. Bd6 {[%clk 0:01:46]}  Qa5 {[%clk 0:02:17]} 18. Qxb4 {[%clk 0:01:43]}  Qxb4 {[%clk 0:02:13]} 19. Bxb4 {[%clk 0:01:42]}  Ne3 {[%clk 0:02:12]} 20. f5 {[%clk 0:01:10]}  Nxf1 {[%clk 0:02:01]} 21. Rxf1 {[%clk 0:01:08]}  Nc6 {[%clk 0:01:56]} 22. Bc5 {[%clk 0:01:02]}  exf5 {[%clk 0:01:47]} 23. exf5 {[%clk 0:01:01]}  O-O-O {[%clk 0:01:47]} 24. fxg6 {[%clk 0:00:44]}  hxg6 {[%clk 0:01:42]} 25. Ng5 {[%clk 0:00:44]}  Bh6 {[%clk 0:01:41]} 26. h4 {[%clk 0:00:43]}  Ne5 {[%clk 0:01:39]} 27. Be4 {[%clk 0:00:36]}  f5 {[%clk 0:01:28]} 28. Bxb7+ {[%clk 0:00:19]}  Kxb7 {[%clk 0:01:28]} 29. Kb1 {[%clk 0:00:19]}  Bxg5 {[%clk 0:01:25]} 30. hxg5 {[%clk 0:00:18]}  Rd2 {[%clk 0:01:18]} 0-1


[Site "https://www.chess.com"]

[Event "Titled Tuesday Blitz April 18 Early 2023"]
[White "Inepton_Fermion"]
[Black "Toncheva, Nadya"]
[BlackFideId "2924056"]
[WhiteElo "2247"]
[BlackElo "2101"]
[Result "0-1"]
[Round "02"]
[TimeControl "180+2"]
[Date "2023.04.18"]
[WhiteClock "0:00:02"]
[BlackClock "0:00:12"]

1. e4 {[%clk 0:03:00]}  c5 {[%clk 0:02:59]} 2. Nf3 {[%clk 0:03:00]}  Nc6 {[%clk 0:02:58]} 3. d4 {[%clk 0:03:01]}  cxd4 {[%clk 0:02:59]} 4. Nxd4 {[%clk 0:03:01]}  g6 {[%clk 0:03:00]} 5. c4 {[%clk 0:03:01]}  Bg7 {[%clk 0:03:00]} 6. Be3 {[%clk 0:03:01]}  Nf6 {[%clk 0:03:01]} 7. Nc3 {[%clk 0:03:01]}  O-O {[%clk 0:03:01]} 8. Be2 {[%clk 0:03:01]}  d6 {[%clk 0:03:02]} 9. h3 {[%clk 0:03:01]}  Nxd4 {[%clk 0:03:01]} 10. Bxd4 {[%clk 0:03:00]}  Bd7 {[%clk 0:02:59]} 11. O-O {[%clk 0:02:59]}  Bc6 {[%clk 0:02:55]} 12. Qc2 {[%clk 0:02:59]}  a5 {[%clk 0:02:53]} 13. Rad1 {[%clk 0:02:59]}  Nd7 {[%clk 0:02:50]} 14. Bxg7 {[%clk 0:02:58]}  Kxg7 {[%clk 0:02:51]} 15. Kh1 {[%clk 0:02:54]}  Qb6 {[%clk 0:02:47]} 16. f4 {[%clk 0:02:46]}  f5 {[%clk 0:02:33]} 17. exf5 {[%clk 0:02:25]}  gxf5 {[%clk 0:02:28]} 18. Bf3 {[%clk 0:02:20]}  Kh8 {[%clk 0:02:13]} 19. Rde1 {[%clk 0:02:07]}  Rae8 {[%clk 0:02:10]} 20. Bh5 {[%clk 0:02:05]}  Rg8 {[%clk 0:01:50]} 21. Bxe8 {[%clk 0:01:58]}  Rxg2 {[%clk 0:01:29]} 22. Qxg2 {[%clk 0:01:59]}  Bxg2+ {[%clk 0:01:29]} 23. Kxg2 {[%clk 0:01:59]}  Qxb2+ {[%clk 0:01:29]} 24. Re2 {[%clk 0:01:40]}  Qxc3 {[%clk 0:01:25]} 25. Bxd7 {[%clk 0:01:41]}  Qxc4 {[%clk 0:01:17]} 26. Rxe7 {[%clk 0:01:38]}  Qxa2+ {[%clk 0:01:09]} 27. Rf2 {[%clk 0:01:37]}  Qd5+ {[%clk 0:01:08]} 28. Kh2 {[%clk 0:01:35]}  Qd4 {[%clk 0:00:54]} 29. Kg1 {[%clk 0:00:44]}  a4 {[%clk 0:00:46]} 30. Bxf5 {[%clk 0:00:38]}  a3 {[%clk 0:00:33]} 31. Kf1 {[%clk 0:00:16]}  Qd1+ {[%clk 0:00:29]} 32. Kg2 {[%clk 0:00:16]}  a2 {[%clk 0:00:24]} 33. Rxa2 {[%clk 0:00:04]}  Qd5+ {[%clk 0:00:24]} 34. Be4 {[%clk 0:00:04]}  Qxa2+ {[%clk 0:00:25]} 35. Kf3 {[%clk 0:00:04]}  d5 {[%clk 0:00:21]} 36. Rxh7+ {[%clk 0:00:03]}  Kg8 {[%clk 0:00:21]} 37. Bd3 {[%clk 0:00:04]}  Qb3 {[%clk 0:00:18]} 38. Ke3 {[%clk 0:00:03]}  b5 {[%clk 0:00:12]} 39. Rb7 {[%clk 0:00:02]}  b4 {[%clk 0:00:12]} 0-1


[Site "https://www.chess.com"]

[Event "Titled Tuesday Blitz April 18 Early 2023"]
[White "Putri, Regita Desyari"]
[Black "Rom, Jasper"]
[WhiteFideId "7109083"]
[BlackFideId "2023733"]
[WhiteElo "1930"]
[BlackElo "2233"]
[Result "0-1"]
[Round "02"]
[TimeControl "180+2"]
[Date "2023.04.18"]
[WhiteClock "0:02:04"]
[BlackClock "0:02:32"]

1. d4 {[%clk 0:02:59]}  d5 {[%clk 0:02:59]} 2. c4 {[%clk 0:02:59]}  e6 {[%clk 0:02:59]} 3. Nf3 {[%clk 0:02:59]}  c6 {[%clk 0:02:59]} 4. cxd5 {[%clk 0:02:57]}  exd5 {[%clk 0:02:58]} 5. Nc3 {[%clk 0:02:58]}  Bf5 {[%clk 0:02:58]} 6. Bg5 {[%clk 0:02:57]}  Nf6 {[%clk 0:02:53]} 7. e3 {[%clk 0:02:47]}  Nbd7 {[%clk 0:02:52]} 8. Bd3 {[%clk 0:02:46]}  Bg4 {[%clk 0:02:49]} 9. Ne5 {[%clk 0:02:10]}  Bxd1 {[%clk 0:02:47]} 10. Rxd1 {[%clk 0:02:07]}  Be7 {[%clk 0:02:36]} 11. f4 {[%clk 0:02:04]}  Nxe5 {[%clk 0:02:32]} 0-1


[Site "https://www.chess.com"]

[Event "Titled Tuesday Blitz April 18 Early 2023"]
[White "Coenen, Michael"]
[Black "Larina, Maria"]
[WhiteFideId "4697367"]
[BlackFideId "24113182"]
[WhiteElo "2328"]
[BlackElo "1848"]
[Result "1-0"]
[Round "02"]
[TimeControl "180+2"]
[Date "2023.04.18"]
[WhiteClock "0:02:25"]
[BlackClock "0:00:03"]

1. e4 {[%clk 0:02:59]}  c6 {[%clk 0:02:59]} 2. d4 {[%clk 0:02:59]}  d5 {[%clk 0:02:59]} 3. exd5 {[%clk 0:03:00]}  cxd5 {[%clk 0:02:59]} 4. Bd3 {[%clk 0:03:01]}  Nc6 {[%clk 0:02:59]} 5. c3 {[%clk 0:03:01]}  e5 {[%clk 0:02:59]} 6. dxe5 {[%clk 0:03:00]}  Nxe5 {[%clk 0:03:00]} 7. Nf3 {[%clk 0:03:00]}  Nxd3+ {[%clk 0:02:53]} 8. Qxd3 {[%clk 0:03:01]}  Nf6 {[%clk 0:02:51]} 9. O-O {[%clk 0:03:00]}  Be7 {[%clk 0:02:48]} 10. Bf4 {[%clk 0:02:58]}  O-O {[%clk 0:02:48]} 11. h3 {[%clk 0:02:58]}  h6 {[%clk 0:02:41]} 12. Nbd2 {[%clk 0:02:57]}  a6 {[%clk 0:02:33]} 13. Rad1 {[%clk 0:02:56]}  Qa5 {[%clk 0:02:20]} 14. a3 {[%clk 0:02:55]}  b5 {[%clk 0:02:08]} 15. Nb3 {[%clk 0:02:54]}  Qa4 {[%clk 0:02:01]} 16. Nbd4 {[%clk 0:02:54]}  Bb7 {[%clk 0:01:56]} 17. Be5 {[%clk 0:02:48]}  Ne4 {[%clk 0:01:44]} 18. Nf5 {[%clk 0:02:45]}  Bf6 {[%clk 0:01:28]} 19. Bxf6 {[%clk 0:02:46]}  Nxf6 {[%clk 0:01:27]} 20. N3d4 {[%clk 0:02:46]}  Ne4 {[%clk 0:01:07]} 21. Qf3 {[%clk 0:02:38]}  Rad8 {[%clk 0:00:44]} 22. Qg4 {[%clk 0:02:32]}  g6 {[%clk 0:00:17]} 23. f3 {[%clk 0:02:32]}  Nf6 {[%clk 0:00:12]} 24. Qh4 {[%clk 0:02:32]}  gxf5 {[%clk 0:00:10]} 25. Qxf6 {[%clk 0:02:32]}  Qc4 {[%clk 0:00:03]} 26. Nxf5 {[%clk 0:02:25]} 1-0


[Site "https://www.chess.com"]

[Event "Titled Tuesday Blitz April 18 Early 2023"]
[White "Saya, Ethan"]
[Black "Broca Jimenez, Fernando"]
[WhiteFideId "26095181"]
[BlackFideId "5104742"]
[WhiteElo "2189"]
[BlackElo "2062"]
[Result "0-1"]
[Round "02"]
[TimeControl "180+2"]
[Date "2023.04.18"]
[WhiteClock "0:00:02"]
[BlackClock "0:00:27"]

1. e4 {[%clk 0:02:28]}  c5 {[%clk 0:02:57]} 2. Nf3 {[%clk 0:02:27]}  g6 {[%clk 0:02:57]} 3. d4 {[%clk 0:02:26]}  cxd4 {[%clk 0:02:58]} 4. Qxd4 {[%clk 0:02:27]}  Nf6 {[%clk 0:02:57]} 5. e5 {[%clk 0:02:28]}  Nc6 {[%clk 0:02:57]} 6. Qg4 {[%clk 0:02:28]}  Nxg4 {[%clk 0:02:56]} 7. Bf4 {[%clk 0:02:07]}  Bg7 {[%clk 0:02:44]} 8. Nc3 {[%clk 0:01:54]}  Ngxe5 {[%clk 0:02:42]} 9. Nd2 {[%clk 0:01:52]}  d6 {[%clk 0:02:33]} 10. O-O-O {[%clk 0:01:51]}  Be6 {[%clk 0:02:30]} 11. h4 {[%clk 0:01:49]}  h5 {[%clk 0:02:27]} 12. Nde4 {[%clk 0:01:45]}  Nc4 {[%clk 0:02:16]} 13. Ng5 {[%clk 0:01:14]}  Qb6 {[%clk 0:02:00]} 14. b3 {[%clk 0:00:41]}  Bxc3 {[%clk 0:01:02]} 15. Nxe6 {[%clk 0:00:38]}  fxe6 {[%clk 0:00:59]} 16. Bxc4 {[%clk 0:00:38]}  d5 {[%clk 0:00:57]} 17. Bd3 {[%clk 0:00:36]}  Rf8 {[%clk 0:00:54]} 18. Bxg6+ {[%clk 0:00:35]}  Kd7 {[%clk 0:00:52]} 19. Bg5 {[%clk 0:00:34]}  Qb4 {[%clk 0:00:42]} 20. Kb1 {[%clk 0:00:33]}  a5 {[%clk 0:00:38]} 21. Bxh5 {[%clk 0:00:26]}  a4 {[%clk 0:00:38]} 22. Rh3 {[%clk 0:00:10]}  axb3 {[%clk 0:00:37]} 23. cxb3 {[%clk 0:00:11]}  Rxa2 {[%clk 0:00:34]} 24. Rxd5+ {[%clk 0:00:02]}  exd5 {[%clk 0:00:30]} 25. Bg4+ {[%clk 0:00:03]}  e6 {[%clk 0:00:29]} 26. Bxe6+ {[%clk 0:00:03]}  Kxe6 {[%clk 0:00:29]} 27. Re3+ {[%clk 0:00:03]}  Ne5 {[%clk 0:00:28]} 28. f4 {[%clk 0:00:01]}  Qxb3+ {[%clk 0:00:27]} 29. Kc1 {[%clk 0:00:02]}  Qc2# {[%clk 0:00:27]} 0-1


[Site "https://www.chess.com"]

[Event "Titled Tuesday Blitz April 18 Early 2023"]
[White "Antonova, Nadezhda"]
[Black "Kielinkei"]
[WhiteFideId "14700182"]
[WhiteElo "1765"]
[BlackElo "2469"]
[Result "0-1"]
[Round "02"]
[TimeControl "180+2"]
[Date "2023.04.18"]
[WhiteClock "0:00:07"]
[BlackClock "0:00:13"]

1. Nf3 {[%clk 0:02:59]}  Nf6 {[%clk 0:02:58]} 2. b3 {[%clk 0:03:00]}  g6 {[%clk 0:02:56]} 3. Bb2 {[%clk 0:03:01]}  Bg7 {[%clk 0:02:56]} 4. g3 {[%clk 0:03:02]}  b5 {[%clk 0:02:53]} 5. Bg2 {[%clk 0:03:01]}  Bb7 {[%clk 0:02:54]} 6. O-O {[%clk 0:03:01]}  O-O {[%clk 0:02:53]} 7. d4 {[%clk 0:02:57]}  d6 {[%clk 0:02:51]} 8. c4 {[%clk 0:02:57]}  bxc4 {[%clk 0:02:46]} 9. bxc4 {[%clk 0:02:58]}  Nbd7 {[%clk 0:02:46]} 10. Nc3 {[%clk 0:02:58]}  Ne4 {[%clk 0:02:46]} 11. Qc2 {[%clk 0:02:55]}  Nxc3 {[%clk 0:02:39]} 12. Bxc3 {[%clk 0:02:56]}  Nf6 {[%clk 0:02:35]} 13. d5 {[%clk 0:02:56]}  c6 {[%clk 0:02:30]} 14. e4 {[%clk 0:02:55]}  cxd5 {[%clk 0:02:30]} 15. cxd5 {[%clk 0:02:53]}  Rc8 {[%clk 0:02:27]} 16. Qd3 {[%clk 0:02:50]}  Ba6 {[%clk 0:02:13]} 17. Qxa6 {[%clk 0:02:48]}  Rxc3 {[%clk 0:02:13]} 18. Nd4 {[%clk 0:02:41]}  Nxd5 {[%clk 0:01:44]} 19. Nc6 {[%clk 0:02:38]}  Rxc6 {[%clk 0:01:35]} 20. Qxc6 {[%clk 0:02:38]}  Bxa1 {[%clk 0:01:25]} 21. Rxa1 {[%clk 0:02:29]}  Nf6 {[%clk 0:01:21]} 22. Qb7 {[%clk 0:02:26]}  Qd7 {[%clk 0:01:19]} 23. Qa6 {[%clk 0:02:20]}  Rb8 {[%clk 0:01:17]} 24. Rc1 {[%clk 0:02:13]}  Rb6 {[%clk 0:01:14]} 25. Rc8+ {[%clk 0:02:06]}  Kg7 {[%clk 0:01:11]} 26. Qc4 {[%clk 0:02:05]}  Rb1+ {[%clk 0:01:08]} 27. Bf1 {[%clk 0:02:05]}  Qh3 {[%clk 0:01:02]} 28. f3 {[%clk 0:02:00]}  h5 {[%clk 0:00:34]} 29. Rc7 {[%clk 0:01:56]}  h4 {[%clk 0:00:15]} 30. Rxe7 {[%clk 0:01:56]}  d5 {[%clk 0:00:16]} 31. Qe2 {[%clk 0:01:16]}  hxg3 {[%clk 0:00:15]} 32. hxg3 {[%clk 0:00:57]}  Qxg3+ {[%clk 0:00:16]} 33. Qg2 {[%clk 0:00:52]}  Qd6 {[%clk 0:00:17]} 34. Rxa7 {[%clk 0:00:44]}  dxe4 {[%clk 0:00:17]} 35. fxe4 {[%clk 0:00:38]}  Qc5+ {[%clk 0:00:17]} 36. Qf2 {[%clk 0:00:39]}  Qg5+ {[%clk 0:00:17]} 37. Kh1 {[%clk 0:00:33]}  Qh5+ {[%clk 0:00:13]} 38. Kg1 {[%clk 0:00:31]}  Qg4+ {[%clk 0:00:12]} 39. Qg2 {[%clk 0:00:24]}  Qd1 {[%clk 0:00:12]} 40. e5 {[%clk 0:00:13]}  Qd4+ {[%clk 0:00:13]} 41. Qf2 {[%clk 0:00:13]}  Qxe5 {[%clk 0:00:14]} 42. Ra4 {[%clk 0:00:09]}  Qg5+ {[%clk 0:00:13]} 43. Kh2 {[%clk 0:00:07]}  Ng4+ {[%clk 0:00:13]} 0-1


[Site "https://www.chess.com"]

[Event "Titled Tuesday Blitz April 18 Early 2023"]
[White "Chernov, Mikhail"]
[Black "Floresvillar Gonzalez, Luis Migu"]
[WhiteFideId "24143170"]
[BlackFideId "5100542"]
[WhiteElo "2113"]
[BlackElo "2040"]
[Result "1-0"]
[Round "02"]
[TimeControl "180+2"]
[Date "2023.04.18"]
[WhiteClock "0:01:54"]
[BlackClock "0:01:02"]

1. d4 {[%clk 0:02:54]}  d5 {[%clk 0:02:53]} 2. Nc3 {[%clk 0:02:54]}  Nf6 {[%clk 0:02:50]} 3. Bf4 {[%clk 0:02:55]}  c6 {[%clk 0:02:48]} 4. e3 {[%clk 0:02:53]}  Bf5 {[%clk 0:02:47]} 5. Nf3 {[%clk 0:02:53]}  e6 {[%clk 0:02:47]} 6. Ne5 {[%clk 0:02:53]}  Nbd7 {[%clk 0:02:45]} 7. g4 {[%clk 0:02:53]}  Be4 {[%clk 0:02:43]} 8. f3 {[%clk 0:02:52]}  Bg6 {[%clk 0:02:37]} 9. h4 {[%clk 0:02:52]}  h6 {[%clk 0:02:26]} 10. Nxg6 {[%clk 0:02:51]}  fxg6 {[%clk 0:02:26]} 11. Bd3 {[%clk 0:02:51]}  Kf7 {[%clk 0:02:19]} 12. h5 {[%clk 0:02:49]}  gxh5 {[%clk 0:02:18]} 13. gxh5 {[%clk 0:02:50]}  Bb4 {[%clk 0:02:14]} 14. Bg6+ {[%clk 0:02:49]}  Kg8 {[%clk 0:02:13]} 15. Qd3 {[%clk 0:02:50]}  Nf8 {[%clk 0:02:11]} 16. O-O-O {[%clk 0:02:49]}  Nxg6 {[%clk 0:02:08]} 17. Qxg6 {[%clk 0:02:50]}  Bxc3 {[%clk 0:02:02]} 18. bxc3 {[%clk 0:02:47]}  Qe8 {[%clk 0:02:02]} 19. Qg2 {[%clk 0:02:34]}  Nxh5 {[%clk 0:01:59]} 20. Be5 {[%clk 0:02:34]}  Rh7 {[%clk 0:01:49]} 21. Rdg1 {[%clk 0:02:30]}  g5 {[%clk 0:01:38]} 22. f4 {[%clk 0:02:28]}  Ng7 {[%clk 0:01:29]} 23. fxg5 {[%clk 0:02:25]}  hxg5 {[%clk 0:01:29]} 24. Rxh7 {[%clk 0:02:21]}  Kxh7 {[%clk 0:01:28]} 25. Qxg5 {[%clk 0:02:22]}  Qf7 {[%clk 0:01:19]} 26. Bxg7 {[%clk 0:02:19]}  Qf5 {[%clk 0:01:02]} 27. Qh6+ {[%clk 0:01:53]}  Kg8 {[%clk 0:01:02]} 28. Bf6+ {[%clk 0:01:54]} 1-0


[Site "https://www.chess.com"]

[Event "Titled Tuesday Blitz April 18 Early 2023"]
[White "Kuchava, Ana"]
[Black "Jumanov, Elbek"]
[WhiteFideId "13605348"]
[BlackFideId "14202905"]
[WhiteElo "2001"]
[BlackElo "2055"]
[Result "0-1"]
[Round "02"]
[TimeControl "180+2"]
[Date "2023.04.18"]
[WhiteClock "0:00:04"]
[BlackClock "0:00:36"]

1. d4 {[%clk 0:03:00]}  Nf6 {[%clk 0:02:57]} 2. Nf3 {[%clk 0:03:00]}  g6 {[%clk 0:02:57]} 3. c4 {[%clk 0:02:59]}  c5 {[%clk 0:02:55]} 4. d5 {[%clk 0:02:59]}  b5 {[%clk 0:02:55]} 5. cxb5 {[%clk 0:02:58]}  a6 {[%clk 0:02:56]} 6. b6 {[%clk 0:02:57]}  d6 {[%clk 0:02:55]} 7. Nc3 {[%clk 0:02:56]}  Bg7 {[%clk 0:02:53]} 8. e4 {[%clk 0:02:54]}  O-O {[%clk 0:02:53]} 9. h3 {[%clk 0:02:52]}  Nbd7 {[%clk 0:02:52]} 10. Bd3 {[%clk 0:02:51]}  a5 {[%clk 0:02:51]} 11. O-O {[%clk 0:02:50]}  Nxb6 {[%clk 0:02:47]} 12. Qe2 {[%clk 0:02:48]}  Nfd7 {[%clk 0:02:38]} 13. Bf4 {[%clk 0:02:29]}  Qc7 {[%clk 0:02:12]} 14. Nb5 {[%clk 0:02:24]}  Qb8 {[%clk 0:02:10]} 15. a4 {[%clk 0:02:16]}  Ba6 {[%clk 0:02:05]} 16. Rab1 {[%clk 0:02:07]}  Nxa4 {[%clk 0:02:03]} 17. b3 {[%clk 0:01:50]}  Bxb5 {[%clk 0:01:45]} 18. bxa4 {[%clk 0:01:36]}  Bxd3 {[%clk 0:01:45]} 19. Qxd3 {[%clk 0:01:36]}  Qc7 {[%clk 0:01:36]} 20. Rfc1 {[%clk 0:01:33]}  Rfb8 {[%clk 0:01:34]} 21. Bd2 {[%clk 0:01:27]}  Ne5 {[%clk 0:01:16]} 22. Nxe5 {[%clk 0:01:23]}  Bxe5 {[%clk 0:01:17]} 23. Rb5 {[%clk 0:01:17]}  Rxb5 {[%clk 0:01:10]} 24. Qxb5 {[%clk 0:01:18]}  Rb8 {[%clk 0:01:11]} 25. Qxa5 {[%clk 0:01:10]}  Qxa5 {[%clk 0:01:10]} 26. Bxa5 {[%clk 0:01:11]}  Ra8 {[%clk 0:01:11]} 27. Bc3 {[%clk 0:01:08]}  Bxc3 {[%clk 0:01:09]} 28. Rxc3 {[%clk 0:01:09]}  Rxa4 {[%clk 0:01:10]} 29. f3 {[%clk 0:01:08]}  Kg7 {[%clk 0:01:09]} 30. Kf2 {[%clk 0:01:07]}  Kf6 {[%clk 0:01:06]} 31. Ke3 {[%clk 0:01:05]}  g5 {[%clk 0:01:06]} 32. g3 {[%clk 0:00:54]}  Ra2 {[%clk 0:01:06]} 33. f4 {[%clk 0:00:49]}  h6 {[%clk 0:01:03]} 34. Kf3 {[%clk 0:00:46]}  Kg6 {[%clk 0:00:54]} 35. h4 {[%clk 0:00:34]}  Rh2 {[%clk 0:00:48]} 36. hxg5 {[%clk 0:00:33]}  hxg5 {[%clk 0:00:48]} 37. Rb3 {[%clk 0:00:28]}  gxf4 {[%clk 0:00:46]} 38. Kxf4 {[%clk 0:00:25]}  Kf6 {[%clk 0:00:44]} 39. Rb7 {[%clk 0:00:24]}  Rf2+ {[%clk 0:00:43]} 40. Ke3 {[%clk 0:00:22]}  Rc2 {[%clk 0:00:41]} 41. Rc7 {[%clk 0:00:22]}  Rc3+ {[%clk 0:00:41]} 42. Kf4 {[%clk 0:00:21]}  Rc1 {[%clk 0:00:41]} 43. g4 {[%clk 0:00:20]}  Rf1+ {[%clk 0:00:41]} 44. Ke3 {[%clk 0:00:20]}  e6 {[%clk 0:00:36]} 45. dxe6 {[%clk 0:00:09]}  fxe6 {[%clk 0:00:37]} 46. Rc6 {[%clk 0:00:05]}  Ke5 {[%clk 0:00:36]} 47. g5 {[%clk 0:00:04]}  Rg1 {[%clk 0:00:36]} 0-1


[Site "https://www.chess.com"]